bitfinex/quotes_SOLUSD_20230903
["timestamp","ask_amount","ask_price","bid_price","bid_amount"]
[1693777107352,4.49999999,19.473,19.461,55.0]
[1693777120358,4.49999999,19.478,19.461,55.0]
[1693777121072,4.49999999,19.479,19.462,20.0]
[1693777121361,4.49999999,19.479,19.463,55.0]
[1693777121566,4.49999999,19.481,19.463,55.0]
[1693777121867,4.49999999,19.481,19.464,20.0]
[1693777122062,4.49999999,19.481,19.465,55.0]
[1693777127060,4.49999999,19.482,19.465,55.0]
[1693777129776,4.49999999,19.482,19.47,37.66]
[1693777130074,4.49999999,19.484,19.471,55.0]
[1693777134180,4.49999999,19.484,19.471,114.4819]
[1693777134678,4.49999999,19.485,19.471,114.4819]
[1693777138683,4.49999999,19.487,19.471,114.4819]
[1693777142891,4.49999999,19.487,19.471,126.3624]
[1693777143088,4.94461036,19.492,19.472,20.0]
[1693777143274,4.94461036,19.492,19.473,55.0]
[1693777143574,12.94761036,19.492,19.474,20.0]
[1693777143771,12.94761036,19.492,19.475,55.0]
[1693777145079,4.94461036,19.492,19.475,55.0]
[1693777147384,4.94461036,19.493,19.475,55.0]
[1693777147889,4.94461036,19.493,19.48,37.66]
[1693777148085,4.94461036,19.493,19.481,55.0]
[1693777148687,4.94461036,19.493,19.481,110.0]
[1693777149086,4.94461036,19.495,19.481,110.0]
[1693777149299,4.94461036,19.496,19.481,110.0]
[1693777150696,20.11410188,19.496,19.481,110.0]
[1693777152598,20.11410188,19.496,19.481,55.0]
[1693777154694,28.11510188,19.496,19.481,55.0]
[1693777154889,12.94561036,19.496,19.481,55.0]
[1693777155298,4.94461036,19.496,19.481,55.0]
[1693777155693,12.94561036,19.498,19.481,55.0]
[1693777158990,28.48027907,19.498,19.481,55.0]
[1693777162396,4.94461036,19.498,19.481,55.0]
[1693777162599,4.94461036,19.499,19.49,37.66]
[1693777162808,4.94461036,19.499,19.491,55.0]
[1693777163005,7.997,19.507,19.491,55.0]
[1693777163312,4.94461036,19.506,19.491,55.0]
[1693777163501,4.94461036,19.507,19.491,55.0]
[1693777175717,12.94161036,19.507,19.491,55.0]
[1693777176510,4.94461036,19.507,19.491,55.0]
[1693777179913,55.0,19.506,19.491,55.0]
[1693777180113,4.94461036,19.505,19.491,55.0]
[1693777180310,4.94461036,19.505,19.49,37.66]
[1693777180612,55.0,19.504,19.486,55.0]
[1693777180918,4.94461036,19.503,19.486,55.0]
[1693777181716,4.94461036,19.503,19.487,55.0]
[1693777182815,31.73954734,19.503,19.487,55.0]
[1693777184616,4.94461036,19.503,19.487,55.0]
[1693777185121,12.94261036,19.503,19.487,55.0]
[1693777185812,4.94461036,19.503,19.487,55.0]
[1693777193419,62.999,19.502,19.487,55.0]
[1693777193626,4.94461036,19.501,19.487,55.0]
[1693777194121,4.94461036,19.501,19.486,55.0]
[1693777203441,12.94361036,19.501,19.486,55.0]
[1693777205628,4.94461036,19.501,19.486,55.0]
[1693777209756,31.74032043,19.501,19.486,55.0]
[1693777211241,4.94461036,19.501,19.486,117.42219533]
[1693777211635,4.94461036,19.502,19.486,117.42219533]
[1693777222350,12.94361036,19.502,19.486,117.42219533]
[1693777223155,4.94461036,19.502,19.486,117.42219533]
[1693777228460,12.94361036,19.502,19.486,117.42219533]
[1693777235460,4.94461036,19.502,19.486,117.42219533]
[1693777235668,7.998,19.503,19.486,117.42219533]
[1693777235873,4.94461036,19.502,19.486,117.42219533]
[1693777241268,12.94361036,19.502,19.486,117.42219533]
[1693777248174,28.16229618,19.502,19.486,117.42219533]
[1693777248359,12.94361036,19.502,19.486,117.42219533]
[1693777253377,4.94461036,19.502,19.486,117.42219533]
[1693777255171,4.94461036,19.502,19.49,37.66]
[1693777255369,4.94461036,19.503,19.491,55.0]
[1693777257066,4.94461036,19.504,19.491,55.0]
[1693777290603,4.94461036,19.504,19.49,37.66]
[1693777290803,4.94461036,19.504,19.486,62.42219533]
[1693777291893,4.94461036,19.504,19.487,55.0]
[1693777292801,4.94461036,19.504,19.486,62.42219533]
[1693777292996,37.66,19.5,19.486,62.42219533]
[1693777293202,4.94461036,19.499,19.486,62.42219533]
[1693777293402,4.94461036,19.502,19.486,62.42219533]
[1693777293604,55.0,19.501,19.486,62.42219533]
[1693777293803,4.94461036,19.5,19.486,62.42219533]
[1693777294004,4.94461036,19.5,19.485,40.825038]
[1693777294594,4.94461036,19.501,19.485,40.825038]
[1693777294795,4.94461036,19.502,19.485,40.825038]
[1693777294995,4.94461036,19.502,19.485,103.24723333]
[1693777295198,4.94461036,19.503,19.485,103.24723333]
[1693777295399,55.0,19.502,19.485,103.24723333]
[1693777295595,4.94461036,19.501,19.485,103.24723333]
[1693777296603,4.94461036,19.501,19.486,55.0]
[1693777297904,4.94461036,19.501,19.485,103.24723333]
[1693777298204,92.66,19.5,19.482,63.9095]
[1693777298407,59.29,19.498,19.48,37.66]
[1693777298612,59.94461036,19.497,19.48,37.66]
[1693777298817,8.003,19.492,19.476,25.55437684]
[1693777299112,12.94761036,19.491,19.476,25.55437684]
[1693777299309,4.94461036,19.491,19.478,37.66]
[1693777299907,4.94461036,19.494,19.478,37.66]
[1693777300610,8.004,19.491,19.478,37.66]
[1693777301307,8.003,19.493,19.479,55.0]
[1693777301491,4.94461036,19.492,19.479,55.0]
[1693777301898,12.94761036,19.492,19.479,55.0]
[1693777302903,8.003,19.492,19.479,55.0]
[1693777307704,2.57827564,19.491,19.479,55.0]
[1693777308616,8.003,19.492,19.479,55.0]
[1693777309007,2.69771053,19.491,19.479,55.0]
[1693777310722,10.70071053,19.491,19.479,55.0]
[1693777310906,8.003,19.491,19.479,55.0]
[1693777311105,37.66,19.49,19.471,11.8805]
[1693777311317,8.006,19.485,19.471,11.8805]
[1693777311515,4.49999999,19.484,19.471,11.8805]
[1693777311715,8.007,19.483,19.471,11.8805]
[1693777312220,4.49999999,19.487,19.471,37.7425]
[1693777312525,4.49999999,19.487,19.472,55.0]
[1693777312526,4.49999999,19.484,19.472,55.0]
[1693777312919,8.006,19.484,19.472,55.0]
[1693777313720,4.49999999,19.483,19.472,55.0]
[1693777318627,4.49999999,19.483,19.471,55.0]
[1693777325837,12.50599999,19.485,19.471,55.0]
[1693777326144,4.49999999,19.485,19.471,55.0]
[1693777327642,8.006,19.484,19.471,55.0]
[1693777327845,4.49999999,19.483,19.471,55.0]
[1693777329930,4.49999999,19.483,19.47,37.66]
[1693777330333,4.49999999,19.483,19.471,55.0]
[1693777331641,4.49999999,19.484,19.471,55.0]
[1693777333840,12.50599999,19.484,19.471,55.0]
[1693777343972,53.46797326,19.484,19.471,55.0]
[1693777344961,53.46797326,19.484,19.47,37.66]
[1693777345368,53.46797326,19.484,19.471,55.0]
[1693777346081,53.46797326,19.484,19.468,51.29]
[1693777346262,53.46797326,19.484,19.464,95.15759513]
[1693777346463,53.46797326,19.484,19.465,75.0]
[1693777346665,55.0,19.483,19.465,75.0]
[1693777346865,8.008,19.481,19.465,75.0]
[1693777347070,4.49999999,19.48,19.465,75.0]
[1693777347273,4.49999999,19.48,19.465,130.0]
[1693777352378,4.49999999,19.48,19.465,184.06874049]
[1693777352582,4.49999999,19.481,19.465,184.06874049]
[1693777355879,37.66,19.48,19.465,184.06874049]
[1693777356270,1.55538963,19.479,19.465,184.06874049]
[1693777356567,3.65799629,19.481,19.465,184.06874049]
[1693777359382,37.66,19.48,19.465,184.06874049]
[1693777359684,3.65799629,19.479,19.465,184.06874049]
[1693777359881,37.66,19.48,19.465,184.06874049]
[1693777360082,1.55538963,19.479,19.465,184.06874049]
[1693777361284,37.66,19.48,19.465,184.06874049]
[1693777361584,1.55538963,19.479,19.465,184.06874049]
[1693777362983,37.66,19.48,19.465,184.06874049]
[1693777363283,2.69732758,19.479,19.465,184.06874049]
[1693777363486,37.66,19.48,19.465,184.06874049]
[1693777364291,51.29,19.483,19.465,184.06874049]
[1693777364481,3.03155454,19.482,19.466,54.06874049]
[1693777364689,3.54855072,19.483,19.467,55.0]
[1693777364988,3.54855072,19.483,19.467,109.06874049]
[1693777369083,11.55555072,19.483,19.467,109.06874049]
[1693777369285,3.54855072,19.483,19.467,109.06874049]
[1693777373094,3.54855072,19.483,19.47,37.66]
[1693777373275,78.11147934,19.485,19.471,55.0]
[1693777373276,4.11336932,19.484,19.471,55.0]
[1693777374091,4.49999999,19.486,19.471,55.0]
[1693777376889,12.50499999,19.486,19.471,55.0]
[1693777377196,4.49999999,19.486,19.471,55.0]
[1693777377490,4.49999999,19.487,19.472,20.0]
[1693777377790,4.94461036,19.491,19.473,55.0]
[1693777377984,4.94461036,19.491,19.474,20.0]
[1693777378182,4.94461036,19.491,19.475,55.0]
[1693777380984,12.94761036,19.491,19.475,55.0]
[1693777382094,4.94461036,19.491,19.475,55.0]
[1693777382792,15.57597535,19.494,19.475,55.0]
[1693777382793,56.23461036,19.492,19.475,55.0]
[1693777383190,4.94461036,19.493,19.475,55.0]
[1693777383379,4.94461036,19.49,19.475,55.0]
[1693777383576,12.94861036,19.49,19.475,55.0]
[1693777387589,4.94461036,19.49,19.475,55.0]
[1693777387888,8.003,19.492,19.475,55.0]
[1693777388093,4.94461036,19.491,19.475,55.0]
[1693777389302,12.94761036,19.491,19.475,55.0]
[1693777403099,37.66,19.49,19.475,55.0]
[1693777403301,12.94861036,19.489,19.475,55.0]
[1693777419318,54.6118547,19.489,19.475,55.0]
[1693777432433,54.6118547,19.489,19.474,20.0]
[1693777433738,80.4718547,19.489,19.475,55.0]
[1693777436342,54.6118547,19.489,19.475,55.0]
[1693777438542,46.6078547,19.489,19.475,55.0]
[1693777439038,54.6118547,19.489,19.475,55.0]
[1693777441843,12.94861036,19.489,19.475,55.0]
[1693777447144,4.94461036,19.489,19.475,55.0]
[1693777450458,4.94461036,19.493,19.474,20.0]
[1693777450642,4.94461036,19.493,19.475,58.16374049]
[1693777451858,4.94461036,19.493,19.476,55.0]
[1693777452661,12.94761036,19.493,19.476,55.0]
[1693777454943,37.66,19.49,19.475,58.16374049]
[1693777455144,4.94461036,19.488,19.47,37.66]
[1693777455460,55.0,19.487,19.47,37.66]
[1693777455666,4.94461036,19.486,19.47,37.66]
[1693777457959,12.95061036,19.486,19.471,55.0]
[1693777458263,4.94461036,19.486,19.471,55.0]
[1693777458861,12.94961036,19.486,19.471,55.0]
[1693777459663,4.94461036,19.486,19.471,55.0]
[1693777460462,12.94961036,19.486,19.471,55.0]
[1693777460852,4.94461036,19.486,19.471,55.0]
[1693777462566,12.94961036,19.486,19.471,55.0]
[1693777464953,56.23461036,19.486,19.471,55.0]
[1693777465869,64.23961036,19.486,19.471,55.0]
[1693777469066,104.66282555,19.486,19.471,55.0]
[1693777476467,96.65782555,19.486,19.471,55.0]
[1693777481192,45.36782555,19.486,19.471,55.0]
[1693777482082,51.29,19.485,19.471,55.0]
[1693777482282,4.94461036,19.484,19.471,55.0]
[1693777498399,4.94461036,19.484,19.467,58.163741]
[1693777498588,4.94461036,19.484,19.468,55.0]
[1693777503498,56.23461036,19.485,19.468,55.0]
[1693777505381,56.23461036,19.485,19.47,37.66]
[1693777523123,4.94461036,19.485,19.47,37.66]
[1693777523417,56.23461036,19.485,19.47,37.66]
[1693777526321,55.0,19.484,19.47,37.66]
[1693777526513,4.94461036,19.483,19.47,37.66]
[1693777535120,4.94461036,19.484,19.47,37.66]
[1693777535425,4.94461036,19.484,19.471,55.0]
[1693777543331,4.94461036,19.485,19.47,37.66]
[1693777543534,4.94461036,19.483,19.47,37.66]
[1693777556741,4.94461036,19.486,19.47,37.66]
[1693777557035,4.94461036,19.484,19.47,37.66]
[1693777557542,4.94461036,19.486,19.471,55.0]
[1693777560838,64.23961036,19.486,19.471,55.0]
[1693777561341,12.94961036,19.486,19.471,55.0]
[1693777561544,64.23961036,19.486,19.471,55.0]
[1693777563140,12.94961036,19.486,19.471,55.0]
[1693777565837,4.94461036,19.486,19.471,55.0]
[1693777575041,24.94461036,19.487,19.471,55.0]
[1693777576950,4.94461036,19.487,19.471,55.0]
[1693777593561,4.94461036,19.488,19.471,55.0]
[1693777595961,4.94461036,19.488,19.472,20.0]
[1693777596156,4.94461036,19.488,19.473,55.0]
[1693777596355,4.94461036,19.488,19.474,20.0]
[1693777596567,4.94461036,19.488,19.475,55.0]
[1693777601369,4.94461036,19.489,19.475,55.0]
[1693777602570,4.94461036,19.49,19.475,55.0]
[1693777603262,4.94461036,19.491,19.475,55.0]
[1693777604471,45.7499519,19.491,19.475,55.0]
[1693777609981,53.7529519,19.491,19.476,55.0]
[1693777610177,53.7529519,19.491,19.474,55.0]
[1693777610368,53.7529519,19.491,19.475,20.0]
[1693777610680,53.7529519,19.491,19.476,55.0]
[1693777618272,45.7499519,19.491,19.476,55.0]
[1693777623191,37.66,19.49,19.476,55.0]
[1693777623379,4.94461036,19.489,19.476,55.0]
[1693777648711,4.94461036,19.489,19.475,20.0]
[1693777648895,4.94461036,19.489,19.472,20.0]
[1693777649102,4.94461036,19.489,19.473,55.0]
[1693777649402,4.94461036,19.489,19.474,20.0]
[1693777649608,4.94461036,19.489,19.475,55.0]
[1693777695762,48.37487019,19.499,19.48,26.37]
[1693777695763,4.94461036,19.495,19.48,26.37]
[1693777695966,24.94461036,19.498,19.481,55.0]
[1693777696966,20.0,19.497,19.481,55.0]
[1693777697164,4.94461036,19.498,19.481,55.0]
[1693777697361,46.40662267,19.498,19.481,55.0]
[1693777697664,4.94461036,19.496,19.481,55.0]
[1693777770340,4.94461036,19.496,19.48,26.35]
[1693777771642,4.94461036,19.496,19.481,55.0]
[1693777772841,55.0,19.495,19.476,88.09447684]
[1693777773027,4.94461036,19.494,19.477,55.0]
[1693777773229,4.94461036,19.494,19.477,119.823921]
[1693777773426,4.94461036,19.494,19.477,64.823921]
[1693777774745,4.94461036,19.494,19.478,55.0]
[1693777776748,55.0,19.493,19.478,55.0]
[1693777776945,4.94461036,19.492,19.477,55.0]
[1693777787058,4.94461036,19.492,19.476,80.55437684]
[1693777787352,55.0,19.491,19.476,25.55437684]
[1693777787566,4.94461036,19.49,19.476,25.55437684]
[1693777787758,4.94461036,19.49,19.473,51.30951232]
[1693777787962,4.94461036,19.49,19.474,97.29033955]
[1693777788257,4.94461036,19.49,19.475,25.55437684]
[1693777788458,4.94461036,19.49,19.476,55.0]
[1693777788656,4.94461036,19.49,19.476,80.55437684]
[1693777795161,31.29461036,19.49,19.476,80.55437684]
[1693777797066,4.94461036,19.49,19.476,80.55437684]
[1693777799063,31.29461036,19.49,19.476,80.55437684]
[1693777799765,4.94461036,19.49,19.476,80.55437684]
[1693777800567,4.94461036,19.49,19.476,25.55437684]
[1693777801171,4.94461036,19.49,19.474,75.0]
[1693777801356,4.94461036,19.49,19.475,55.0]
[1693777806969,31.29461036,19.49,19.475,55.0]
[1693777807168,4.94461036,19.49,19.475,55.0]
[1693777808869,4.94461036,19.49,19.474,20.0]
[1693777809176,55.0,19.489,19.474,20.0]
[1693777809375,4.94461036,19.488,19.474,20.0]
[1693777820286,4.94461036,19.488,19.474,19.0]
[1693777850613,4.94461036,19.488,19.475,55.0]
[1693777851508,4.94461036,19.488,19.47,26.35]
[1693777851814,4.94461036,19.488,19.468,25.55437684]
[1693777851815,55.0,19.487,19.468,25.55437684]
[1693777852011,8.007,19.483,19.463,25.55437684]
[1693777852200,4.94461036,19.482,19.464,20.0]
[1693777852402,8.007,19.483,19.464,45.55437684]
[1693777852897,4.94461036,19.483,19.464,45.55437684]
[1693777853107,4.94461036,19.484,19.465,55.0]
[1693777853414,4.94461036,19.482,19.464,45.55437684]
[1693777853920,4.94461036,19.482,19.465,51.73649797]
[1693777854710,4.94461036,19.482,19.466,55.0]
[1693777856118,55.0,19.483,19.466,55.0]
[1693777856418,4.94461036,19.483,19.466,55.0]
[1693777871121,4.94461036,19.483,19.466,106.73649797]
[1693777872025,55.0,19.482,19.466,51.73649797]
[1693777872229,4.94461036,19.481,19.466,51.73649797]
[1693777873421,4.94461036,19.481,19.467,55.0]
[1693777878731,4.94461036,19.481,19.466,51.73649797]
[1693777878930,4.94461036,19.485,19.47,26.35]
[1693777879136,4.94461036,19.489,19.471,75.0]
[1693777879432,4.94461036,19.489,19.472,55.0]
[1693777879637,4.94461036,19.489,19.473,20.0]
[1693777881337,55.0,19.488,19.473,20.0]
[1693777881630,4.94461036,19.487,19.473,20.0]
[1693777884428,55.0,19.486,19.473,20.0]
[1693777884635,4.94461036,19.485,19.472,20.0]
[1693777884841,4.94461036,19.485,19.471,20.0]
[1693777885029,4.94461036,19.485,19.472,55.0]
[1693777885230,4.94461036,19.485,19.473,20.0]
[1693777888338,4.94461036,19.485,19.471,20.0]
[1693777889339,4.94461036,19.485,19.47,81.35]
[1693777889540,55.0,19.484,19.47,26.35]
[1693777889845,4.94461036,19.483,19.47,26.35]
[1693777899048,4.94461036,19.483,19.466,51.73649797]
[1693777899253,55.0,19.482,19.462,111.88531232]
[1693777899546,4.94461036,19.481,19.463,97.29087481]
[1693777899742,55.0,19.48,19.463,97.29087481]
[1693777899952,55.0,19.482,19.463,97.29087481]
[1693777900251,4.94461036,19.481,19.463,97.29087481]
[1693777900448,55.0,19.48,19.464,55.0]
[1693777900751,55.0,19.48,19.465,20.0]
[1693777900937,55.0,19.48,19.466,55.0]
[1693777915361,4.72426996,19.479,19.466,55.0]
[1693777929166,4.72426996,19.479,19.465,20.0]
[1693777929475,4.72426996,19.479,19.464,20.0]
[1693777929677,4.72426996,19.479,19.465,55.0]
[1693777963999,4.72426996,19.479,19.464,20.0]
[1693777964202,55.0,19.478,19.464,20.0]
[1693777964398,4.94461036,19.477,19.464,20.0]
[1693777970308,4.94461036,19.477,19.465,20.0]
[1693777970609,4.94461036,19.477,19.463,20.0]
[1693777977307,24.94461036,19.477,19.462,51.736498]
[1693777977511,24.94461036,19.477,19.46,93.31928316]
[1693777977512,55.0,19.476,19.46,26.35]
[1693777977705,8.01,19.474,19.453,51.73649797]
[1693777978015,59.94461036,19.473,19.456,55.0]
[1693777978408,59.94461036,19.473,19.46,26.35]
[1693777985109,59.94461036,19.473,19.456,55.0]
[1693777985311,59.94461036,19.473,19.457,55.0]
[1693777986618,59.94461036,19.473,19.456,55.0]
[1693777986811,59.94461036,19.473,19.454,20.0]
[1693777988412,59.94461036,19.473,19.455,55.0]
[1693777989712,101.83566893,19.473,19.455,55.0]
[1693777997216,59.94461036,19.473,19.46,26.35]
[1693778002735,59.94461036,19.473,19.456,25.55437684]
[1693778002935,59.94461036,19.473,19.46,26.35]
[1693778014037,4.94461036,19.473,19.46,26.35]
[1693778014238,24.94461036,19.475,19.461,55.0]
[1693778016633,24.94461036,19.475,19.46,26.35]
[1693778016832,55.0,19.474,19.46,26.35]
[1693778017033,4.94461036,19.473,19.46,26.35]
[1693778018138,4.94461036,19.474,19.461,55.0]
[1693778018338,4.94461036,19.475,19.461,55.0]
[1693778022146,24.94461036,19.475,19.461,55.0]
[1693778024554,4.94461036,19.475,19.461,55.0]
[1693778051272,4.94461036,19.475,19.46,26.35]
[1693778051465,4.94461036,19.475,19.455,51.73649797]
[1693778051466,63.01,19.474,19.455,51.73649797]
[1693778051664,4.94461036,19.473,19.454,81.0111]
[1693778051976,55.0,19.472,19.454,81.0111]
[1693778052162,4.94461036,19.471,19.454,81.0111]
[1693778052362,4.94461036,19.471,19.46,26.35]
[1693778054981,4.94461036,19.471,19.454,20.0]
[1693778055182,4.94461036,19.471,19.455,55.0]
[1693778055774,55.0,19.47,19.455,55.0]
[1693778056073,4.94461036,19.469,19.455,55.0]
[1693778064881,55.0,19.468,19.454,20.0]
[1693778065188,4.94461036,19.467,19.451,20.0]
[1693778065390,4.94461036,19.467,19.452,132.29087481]
[1693778065593,4.94461036,19.467,19.453,20.0]
[1693778065890,4.94461036,19.467,19.453,45.55437684]
[1693778066090,4.94461036,19.467,19.453,100.55437684]
[1693778067690,4.94461036,19.467,19.454,25.55437684]
[1693778067891,4.94461036,19.467,19.455,20.0]
[1693778068085,4.94461036,19.467,19.453,55.0]
[1693778068289,55.0,19.466,19.452,51.73649797]
[1693778068586,20.0,19.465,19.452,51.73649797]
[1693778069190,55.0,19.466,19.452,51.73649797]
[1693778069392,20.0,19.465,19.452,51.73649797]
[1693778071878,20.0,19.465,19.45,26.35]
[1693778071879,55.0,19.464,19.45,26.35]
[1693778082701,20.0,19.465,19.45,26.35]
[1693778083897,55.0,19.464,19.45,26.35]
[1693778095500,63.015,19.464,19.45,26.35]
[1693778095705,63.015,19.464,19.448,51.73649797]
[1693778095905,63.015,19.464,19.446,55.0]
[1693778096107,63.015,19.464,19.447,55.0]
[1693778102835,63.015,19.464,19.446,55.0]
[1693778103122,26.35,19.46,19.444,409.70181565]
[1693778103321,55.0,19.459,19.445,20.0]
[1693778103820,55.0,19.46,19.445,20.0]
[1693778104211,63.016,19.46,19.445,20.0]
[1693778104416,95.8465,19.459,19.445,20.0]
[1693778104716,55.0,19.458,19.445,20.0]
[1693778106423,63.017,19.458,19.445,20.0]
[1693778107413,55.0,19.458,19.445,20.0]
[1693778131337,28.018,19.457,19.44,26.35]
[1693778131520,28.018,19.457,19.433,47.87342205]
[1693778131724,55.0,19.456,19.433,48.00260908]
[1693778131939,8.019,19.453,19.434,45.55437684]
[1693778132936,8.019,19.453,19.435,55.0]
[1693778136243,55.0,19.452,19.435,55.0]
[1693778136629,151.2474,19.452,19.435,55.0]
[1693778141158,159.2664,19.452,19.435,55.0]
[1693778144949,151.2474,19.452,19.435,55.0]
[1693778145741,159.2664,19.452,19.434,45.55437684]
[1693778146253,151.2474,19.452,19.434,45.55437684]
[1693778147154,151.2474,19.452,19.435,55.0]
[1693778159967,151.2474,19.452,19.434,20.0]
[1693778161181,151.2474,19.452,19.434,76.486111]
[1693778161383,151.2474,19.452,19.435,55.0]
[1693778162268,159.2664,19.452,19.435,55.0]
[1693778163283,159.2664,19.452,19.434,76.486111]
[1693778163584,159.2664,19.452,19.435,55.0]
[1693778171381,151.2474,19.452,19.435,55.0]
[1693778187409,159.2664,19.452,19.435,55.0]
[1693778197006,186.12884711,19.452,19.435,55.0]
[1693778200318,159.2664,19.452,19.431,41.07407406]
[1693778200522,26.35,19.45,19.432,20.0]
[1693778200820,55.0,19.449,19.431,20.0]
[1693778201308,55.0,19.449,19.431,55.0]
[1693778201309,20.0,19.448,19.431,55.0]
[1693778201514,8.022,19.445,19.431,55.0]
[1693778202013,55.0,19.444,19.43,26.35]
[1693778203407,51.29,19.447,19.43,26.35]
[1693778203606,91.1899,19.453,19.44,26.35]
[1693778204014,15.16520843,19.456,19.44,26.35]
[1693778204317,51.29,19.455,19.44,26.35]
[1693778204515,15.16520843,19.456,19.44,26.35]
[1693778204516,15.16520843,19.456,19.441,25.55437684]
[1693778204715,20.0,19.455,19.441,25.55437684]
[1693778205316,71.29,19.457,19.441,25.55437684]
[1693778205808,55.0,19.456,19.441,25.55437684]
[1693778206011,20.0,19.455,19.441,25.55437684]
[1693778206211,55.0,19.454,19.441,25.55437684]
[1693778208407,20.0,19.455,19.441,25.55437684]
[1693778208609,20.0,19.456,19.441,25.55437684]
[1693778208811,55.0,19.455,19.441,25.55437684]
[1693778215320,76.3461934,19.456,19.441,25.55437684]
[1693778215515,76.3461934,19.456,19.442,55.0]
[1693778216110,61.19341563,19.456,19.442,55.0]
[1693778222827,61.19341563,19.456,19.441,55.0]
[1693778223229,61.19341563,19.456,19.44,26.35]
[1693778223426,55.0,19.455,19.44,26.35]
[1693778223616,63.018,19.455,19.44,26.35]
[1693778229336,55.0,19.455,19.44,26.35]
[1693778229552,63.018,19.455,19.44,26.35]
[1693778230055,63.018,19.455,19.437,58.61927575]
[1693778230239,63.018,19.455,19.435,77.645577]
[1693778230439,63.018,19.455,19.436,55.0]
[1693778230639,63.018,19.455,19.436,114.05260908]
[1693778230839,55.0,19.455,19.436,114.05260908]
[1693778231249,63.018,19.455,19.436,114.05260908]
[1693778237854,26.8631633,19.454,19.436,114.05260908]
[1693778238153,55.0,19.453,19.436,114.05260908]
[1693778241550,55.0,19.454,19.436,114.05260908]
[1693778251657,81.86149318,19.454,19.436,114.05260908]
[1693778254661,55.0,19.454,19.436,114.05260908]
[1693778263567,20.0,19.456,19.44,26.35]
[1693778263773,91.1899,19.458,19.441,139.60698592]
[1693778263774,20.0,19.457,19.441,139.60698592]
[1693778271468,8.018,19.456,19.441,55.0]
[1693778271675,8.018,19.456,19.44,26.35]
[1693778271676,20.0,19.455,19.44,26.35]
[1693778271878,55.0,19.454,19.44,26.35]
[1693778272475,20.0,19.455,19.44,26.35]
[1693778272778,28.018,19.457,19.44,26.35]
[1693778272980,55.0,19.456,19.44,26.35]
[1693778273274,20.0,19.455,19.44,26.35]
[1693778273582,55.0,19.454,19.44,26.35]
[1693778284988,20.0,19.455,19.441,55.0]
[1693778285185,20.0,19.456,19.441,55.0]
[1693778285385,55.0,19.455,19.441,55.0]
[1693778287188,55.0,19.455,19.44,26.35]
[1693778287379,8.019,19.454,19.435,200.81128608]
[1693778287580,55.0,19.453,19.435,200.81128608]
[1693778287779,8.019,19.452,19.435,200.81128608]
[1693778288891,8.019,19.452,19.436,55.0]
[1693778290989,55.0,19.453,19.436,55.0]
[1693778292583,55.0,19.454,19.436,55.0]
[1693778292899,63.019,19.454,19.436,55.0]
[1693778294283,55.0,19.454,19.436,55.0]
[1693778295780,63.019,19.454,19.436,55.0]
[1693778299293,105.03957612,19.454,19.436,55.0]
[1693778304009,97.02057612,19.454,19.436,55.0]
[1693778304705,55.0,19.454,19.436,114.05260908]
[1693778304895,55.0,19.455,19.436,114.05260908]
[1693778305412,55.0,19.455,19.44,26.35]
[1693778311811,55.0,19.455,19.441,55.0]
[1693778314421,20.0,19.456,19.441,55.0]
[1693778314619,20.0,19.457,19.441,55.0]
[1693778314811,55.0,19.456,19.441,55.0]